bitfinex/quotes_ETHUSD_20251126
["timestamp","ask_amount","ask_price","bid_price","bid_amount"]
[1764139817464,0.4976,2945.2,2944.8,6.79159644]
[1764139817660,0.215,2945.3,2944.8,6.79159644]
[1764139817865,0.7126,2945.3,2944.8,6.79159644]
[1764139818085,0.7126,2945.3,2944.8,7.26349644]
[1764139818255,0.4976,2945.2,2944.8,6.79159644]
[1764139819989,0.4976,2945.2,2944.8,3.39578009]
[1764139820480,0.215,2945.3,2945.1,0.4767]
[1764139820698,0.215,2945.3,2945.2,0.4767]
[1764139820899,0.215,2945.3,2944.9,0.4719]
[1764139821473,0.7126,2945.3,2944.9,0.4719]
[1764139821686,0.7126,2945.3,2944.7,7.26376299]
[1764139821865,0.7126,2945.3,2944.7,10.65969466]
[1764139822065,0.7126,2945.3,2944.8,0.4719]
[1764139823200,0.215,2945.3,2945.2,0.4767]
[1764139823400,0.542,2945.4,2945.2,0.6753]
[1764139823702,0.542,2945.4,2945.3,0.4767]
[1764139823890,0.542,2945.4,2945.3,0.9486]
[1764139824089,0.542,2945.4,2945.3,6.98941116]
[1764139824404,0.542,2945.4,2945.3,4.34383987]
[1764139825778,0.542,2945.4,2945.3,6.98941116]
[1764139826701,0.542,2945.4,2945.3,4.34383987]
[1764139827604,0.833,2945.4,2945.3,3.39523987]
[1764139828502,0.542,2945.4,2945.3,0.4767]
[1764139828690,0.542,2945.4,2945.3,4.2787]
[1764139828895,0.833,2945.4,2945.3,3.802]
[1764139830501,0.833,2945.4,2945.3,7.19723987]
[1764139834110,0.542,2945.4,2945.3,7.67393987]
[1764139834406,0.542,2945.4,2945.3,8.14583987]
[1764139838324,0.002,2945.7,2945.4,3.26]
[1764139838630,0.002,2945.7,2945.6,3.12227129]
[1764139838985,0.002,2945.7,2945.6,3.80917129]
[1764139839879,0.002,2945.7,2945.6,7.20406536]
[1764139840385,0.002,2945.7,2945.6,11.18965947]
[1764139843220,0.002,2945.7,2945.6,8.54408818]
[1764139843592,0.002,2946.0,2945.9,3.258]
[1764139844118,0.291,2946.0,2945.9,3.258]
[1764139844486,0.291,2946.0,2945.9,6.65254835]
[1764139844906,0.002,2946.0,2945.9,6.65254835]
[1764139845512,0.002,2946.0,2945.9,7.64054835]
[1764139847317,0.002,2946.0,2945.9,7.14154835]
[1764139851397,0.2927,2946.0,2945.9,6.65254835]
[1764139855828,0.4775,2946.0,2945.9,6.65254835]
[1764139858338,0.002,2946.0,2945.9,7.14154835]
[1764139859350,0.4759,2946.0,2945.9,6.65254835]
[1764139860916,0.002,2946.0,2945.9,7.14154835]
[1764139861118,0.002,2946.0,2945.9,7.64054835]
[1764139862934,0.002,2946.0,2945.9,7.14154835]
[1764139863134,0.3331,2946.0,2945.9,6.65254835]
[1764139864419,0.7869,2946.0,2945.9,6.65254835]
[1764139865023,0.002,2946.0,2945.9,6.65254835]
[1764139865549,0.3331,2946.0,2945.9,6.65254835]
[1764139865763,0.002,2946.0,2945.9,6.65254835]
[1764139866251,0.3331,2946.0,2945.9,6.65254835]
[1764139866467,0.7869,2946.0,2945.9,6.65254835]
[1764139866959,0.3331,2946.0,2945.9,6.65254835]
[1764139867163,0.002,2946.0,2945.9,7.14794835]
[1764139867679,0.002,2946.3,2945.9,16.69981964]
[1764139867968,0.002,2946.6,2946.3,5.89957129]
[1764139868167,0.002,2946.6,2946.5,0.4954]
[1764139868465,0.002,2946.6,2946.5,4.2057]
[1764139868868,0.002,2946.6,2946.5,6.85127129]
[1764139869035,0.002,2947.5,2947.0,10.1798439]
[1764139869235,0.002,2947.5,2947.4,3.14097129]
[1764139869439,0.002,2947.5,2947.4,3.28927129]
[1764139869638,0.002,2947.5,2947.4,3.74557129]
[1764139869837,0.002,2947.5,2947.4,4.20057129]
[1764139870371,0.002,2947.5,2947.4,3.59597129]
[1764139870762,0.002,2947.5,2947.4,4.05227129]
[1764139871148,0.002,2947.5,2947.4,7.44509208]
[1764139871875,0.455,2948.6,2947.5,1.13109811]
[1764139872076,0.455,2948.6,2948.0,2.64557129]
[1764139872756,0.455,2948.6,2947.8,3.31687129]
[1764139873162,0.455,2948.6,2947.6,10.17777174]
[1764139873363,0.455,2948.6,2947.8,2.64557129]
[1764139873909,0.455,2948.6,2947.9,0.4756]
[1764139874759,0.455,2948.6,2947.7,2.57347723]
[1764139874965,0.3322,2948.0,2947.6,10.17777174]
[1764139875461,0.002,2948.8,2947.9,0.4782]
[1764139875666,0.4641,2948.4,2947.9,0.4782]
[1764139876203,0.3232,2948.0,2947.6,10.17777174]
[1764139876688,0.4641,2948.0,2947.6,10.17777174]
[1764139876890,0.1985,2947.9,2947.7,3.254]
[1764139877090,0.7789,2947.8,2947.6,6.78518116]
[1764139877396,0.0033,2947.7,2947.3,3.254]
[1764139877594,0.1985,2947.9,2947.4,0.4756]
[1764139877776,0.6626,2947.9,2947.3,3.254]
[1764139878402,0.4641,2948.2,2947.4,0.4756]
[1764139878861,0.4641,2948.5,2947.6,2.57347723]
[1764139879284,0.4641,2948.5,2947.8,10.1770812]
[1764139879686,0.4641,2948.5,2947.9,3.254]
[1764139879887,0.002,2948.8,2948.0,0.215]
[1764139880092,0.4641,2948.7,2948.0,3.469]
[1764139880659,0.002,2948.2,2948.0,3.469]
[1764139880863,0.002,2948.2,2948.1,3.9142]
[1764139881091,0.002,2948.2,2948.1,4.3924]
[1764139881288,0.002,2948.2,2948.1,7.78441519]
[1764139882306,0.002,2948.2,2948.1,8.5100093]
[1764139882865,0.002,2948.5,2948.4,3.252]
[1764139883096,0.002,2948.5,2948.4,6.77927723]
[1764139883398,0.002,2948.5,2948.4,10.38594728]
[1764139886586,0.002,2948.5,2948.4,7.81247005]
[1764139888103,0.002,2948.8,2948.7,3.25]
[1764139888511,0.3146,2948.8,2948.7,3.25]
[1764139889525,0.3146,2948.8,2948.7,6.64132499]
[1764139889735,0.002,2948.8,2948.7,6.64132499]
[1764139890621,0.002,2948.8,2948.7,3.39132499]
[1764139891324,0.002,2948.8,2948.7,3.86952499]
[1764139891524,0.002,2948.8,2948.7,4.34512499]
[1764139891724,0.002,2948.8,2948.7,4.37903823]
[1764139892325,0.002,2948.8,2948.7,4.34512499]
[1764139892627,0.002,2948.8,2948.7,9.04677179]
[1764139892932,0.002,2948.8,2948.7,9.01285855]
[1764139894225,0.002,2948.8,2948.7,9.11285855]
[1764139894449,0.002,2948.8,2948.7,9.01285855]
[1764139894730,0.002,2948.8,2948.7,4.96562899]
[1764139895032,0.002,2948.8,2948.7,5.72513634]
[1764139895198,0.002,2948.8,2948.7,5.4762231]
[1764139895399,0.002,2948.8,2948.7,3.86952499]
[1764139895806,0.002,2948.8,2948.7,4.34512499]
[1764139896008,0.002,2948.8,2948.7,3.86952499]
[1764139896208,0.7687,2948.8,2947.8,6.78461765]
[1764139896527,0.4687,2948.7,2947.9,0.215]
[1764139896714,0.4687,2948.7,2947.9,0.6906]
[1764139897139,0.4687,2948.7,2948.0,0.4756]
[1764139897631,0.4687,2948.7,2948.0,10.17639075]
[1764139897932,0.4687,2948.7,2948.0,10.17739075]
[1764139898605,0.4687,2948.7,2948.0,10.65299075]
[1764139899144,0.0046,2948.7,2948.1,0.50952015]
[1764139899427,0.002,2948.8,2948.1,0.50952015]
[1764139899650,0.002,2948.8,2948.2,10.17570042]
[1764139899850,0.002,2948.8,2948.3,0.24891785]
[1764139900250,0.002,2948.8,2948.3,0.72451785]
[1764139900419,0.002,2948.8,2948.3,0.215]
[1764139900420,0.3042,2948.4,2948.3,0.215]
[1764139900931,0.4661,2948.8,2948.3,0.215]
[1764139901456,0.002,2948.8,2948.3,0.6906]
[1764139901759,0.4661,2948.8,2948.4,10.17501015]
[1764139903270,0.002,2948.8,2948.4,10.65061015]
[1764139903623,0.002,2948.8,2948.4,10.17501015]
[1764139903825,0.4694,2948.8,2948.4,10.17501015]
[1764139904320,0.002,2948.8,2948.4,10.17501015]
[1764139904525,0.002,2948.8,2948.7,0.4556]
[1764139905557,0.3144,2948.8,2948.4,10.17501015]
[1764139905851,0.0031,2948.6,2948.4,6.7833401]
[1764139906240,0.4694,2948.8,2948.4,10.17501015]
[1764139906444,0.002,2948.8,2948.5,0.4556]
[1764139906658,0.002,2948.8,2948.4,10.17501015]
[1764139906970,0.4576,2948.5,2948.4,3.39167005]
[1764139907181,0.002,2948.8,2948.4,10.65971015]
[1764139907384,0.002,2948.8,2948.4,11.11531015]
[1764139907567,0.002,2948.8,2948.7,0.4556]
[1764139907773,0.002,2948.8,2948.7,3.84692499]
[1764139908458,0.002,2949.1,2948.8,3.248]
[1764139909681,0.4694,2949.1,2948.9,6.78218996]
[1764139910279,0.3124,2949.0,2948.9,3.39109498]
[1764139910650,0.7783,2949.0,2948.9,3.39109498]
[1764139911986,0.7783,2949.0,2948.9,6.63909498]
[1764139912281,0.002,2949.1,2948.9,10.48578996]
[1764139912781,0.4576,2949.0,2948.9,6.63909498]
[1764139913161,0.7797,2949.0,2948.9,6.63909498]
[1764139913360,0.4576,2949.0,2948.9,6.63909498]
[1764139913990,0.7797,2949.0,2948.9,6.63909498]
[1764139914361,0.4576,2949.0,2948.9,6.63909498]
[1764139915511,0.002,2949.1,2948.9,10.48578996]
[1764139915713,0.3124,2949.0,2948.9,6.63909498]
[1764139916020,0.7783,2949.0,2948.9,6.63909498]
[1764139916509,0.7803,2949.0,2948.9,6.63909498]
[1764139916687,0.3144,2949.0,2948.9,6.63909498]
[1764139917093,0.7803,2949.0,2948.9,6.63909498]
[1764139921211,0.7803,2949.0,2948.9,3.248]
[1764139921521,0.7803,2949.0,2948.9,6.63909498]
[1764139924824,0.7768,2949.0,2948.9,6.63909498]
[1764139927526,0.3144,2949.0,2948.9,6.63909498]
[1764139927727,0.7768,2949.0,2948.9,6.63909498]
[1764139933014,0.002,2949.0,2948.9,6.63909498]
[1764139933244,0.4591,2949.0,2948.9,6.63909498]
[1764139933445,0.7818,2949.0,2948.9,6.63909498]
[1764139935140,0.4591,2949.0,2948.9,6.63909498]
[1764139935347,0.7818,2949.0,2948.9,6.63909498]
[1764139943365,0.002,2949.0,2948.9,7.00377785]
[1764139943525,0.2856,2949.0,2948.9,4.17289498]
[1764139943722,0.2856,2949.0,2948.9,3.39109498]
[1764139944157,0.002,2949.0,2948.9,3.39109498]
[1764139944359,0.002,2949.0,2948.9,7.00377785]
[1764139944579,0.002,2949.3,2949.0,0.405504]
[1764139944789,0.002,2949.3,2949.2,3.95136604]
[1764139945156,0.002,2949.3,2949.2,4.43546604]
[1764139945361,0.002,2949.3,2949.2,4.93196604]
[1764139945557,0.002,2949.3,2949.2,8.32271607]
[1764139946549,0.002,2949.3,2949.2,8.72822007]
[1764139949172,0.6796,2950.5,2949.3,1.13109811]
[1764139949389,0.215,2950.9,2949.3,1.13109811]
[1764139949390,0.1831,2951.6,2950.4,0.6383]
[1764139949591,0.99645388,2951.6,2950.9,2.63877193]
[1764139949904,0.3213,2951.0,2950.1,3.52027193]
[1764139950098,0.4965,2951.5,2950.3,3.63522581]
[1764139950391,0.4965,2951.4,2950.7,2.63877193]
[1764139950589,0.4965,2951.4,2950.4,0.4841]
[1764139951882,0.4965,2951.4,2950.5,10.16776815]
[1764139952301,0.4965,2951.4,2950.5,10.65186815]
[1764139952611,0.1831,2951.6,2950.5,14.2561242]
[1764139952784,0.4965,2951.5,2950.6,0.4841]
[1764139953811,0.002,2951.4,2950.6,0.4841]
[1764139954016,0.002,2951.4,2950.7,13.55610532]
[1764139954177,0.002,2951.4,2951.3,0.4559]
[1764139955279,0.8181,2951.4,2951.2,0.1831]
[1764139955518,0.323,2951.3,2950.7,10.38207899]
[1764139955691,0.4965,2951.3,2950.9,0.8181]
[1764139956215,0.3213,2951.0,2950.8,0.4965]
[1764139956523,0.002,2951.4,2950.8,0.4965]
[1764139956680,0.002,2951.4,2950.9,0.4559]
[1764139956884,0.4985,2951.4,2950.8,0.4965]
[1764139957706,0.002,2951.4,2950.8,0.9806]
[1764139957884,0.002,2951.4,2950.9,0.4841]
[1764139958086,0.4985,2951.4,2951.0,6.6665236]
[1764139958483,0.3213,2951.1,2951.0,3.2778418]
[1764139958689,0.002,2951.4,2951.0,10.08909221]
[1764139958889,0.002,2951.4,2951.3,0.4559]
[1764139959809,0.3233,2951.4,2951.1,1.165]
[1764139960119,0.3233,2951.4,2951.2,6.7769043]
[1764139960312,0.8181,2951.4,2951.2,6.7769043]
[1764139960522,0.3233,2951.4,2951.2,6.7769043]
[1764139960816,0.002,2951.4,2951.2,6.7769043]
[1764139961130,0.002,2951.4,2951.3,0.4559]
[1764139961333,0.002,2951.4,2951.3,0.94]
[1764139961833,0.002,2951.4,2951.3,0.4559]
[1764139962189,0.002,2951.4,2951.3,3.84423734]
[1764139962603,0.002,2951.4,2951.3,4.32833734]
[1764139963130,0.002,2951.4,2951.3,3.84423734]
[1764139964492,0.002,2951.4,2951.3,4.34073734]
[1764139964912,0.002,2951.4,2951.3,4.81983734]
[1764139965510,0.002,2951.4,2951.3,4.34073734]
[1764139966735,0.002,2951.4,2951.3,4.81983734]
[1764139966939,0.002,2951.4,2951.3,5.10021482]
[1764139967097,0.002,2951.4,2951.3,4.85931482]
[1764139967298,0.002,2951.4,2951.3,5.31603145]
[1764139967718,0.002,2951.4,2951.3,5.10103145]
[1764139967926,0.3536,2951.4,2951.3,4.61043145]
[1764139968239,0.002,2951.4,2951.3,5.10103145]
[1764139969900,0.002,2951.4,2951.3,4.61043145]
[1764139970099,0.002,2951.4,2951.3,3.88483734]
[1764139970300,0.002,2951.4,2951.3,4.37543734]
[1764139970521,0.8184,2951.4,2951.3,3.38833734]
[1764139970721,0.8184,2951.4,2951.1,0.4679]
[1764139970913,0.4671,2951.3,2951.1,0.4679]
[1764139971129,0.3504,2951.2,2951.0,6.77733521]
[1764139971332,0.3516,2951.1,2950.3,3.38940934]
[1764139971518,3.10171491,2951.2,2950.5,0.4671]
[1764139971742,0.58,2950.6,2950.2,6.7792014]
[1764139971920,0.0044,2950.3,2950.2,3.3896007]
[1764139972753,0.0044,2950.3,2949.8,10.17018102]
[1764139973053,0.4401,2950.1,2949.8,10.17018102]
[1764139973237,0.0088,2949.9,2949.8,3.39006034]
[1764139973930,0.4671,2950.2,2949.8,10.17018102]
[1764139975150,0.6026,2950.6,2950.1,0.4906]
[1764139975344,0.1355,2950.6,2950.1,0.4906]
[1764139975548,0.6026,2950.6,2950.1,1.1505]
[1764139975923,0.4671,2950.5,2950.1,0.4906]
[1764139976423,0.184,2950.8,2950.1,0.1808]
[1764139976849,0.4671,2950.7,2950.1,0.1808]
[1764139977022,0.4671,2950.7,2950.1,0.6599]
[1764139977224,0.4671,2950.7,2950.2,10.1688021]
[1764139978659,0.4671,2950.7,2950.3,3.248]
[1764139979135,0.3966,2950.4,2950.3,6.63748581]
[1764139979855,0.4664,2950.7,2950.3,13.90705743]
[1764139980639,0.3973,2950.4,2950.3,6.63748581]
[1764139981058,0.4664,2950.7,2950.3,10.51757162]
[1764139981256,0.4664,2950.7,2950.3,13.90705743]
[1764139981447,0.184,2950.8,2950.3,14.38615743]
[1764139981646,0.6511,2950.8,2950.3,14.38615743]
[1764139982023,0.184,2950.8,2950.3,13.90705743]
[1764139982452,0.4854,2950.7,2950.3,13.90705743]
[1764139982969,0.184,2950.8,2950.4,3.248]
[1764139983127,0.6209,2951.0,2950.5,6.7785121]
[1764139983327,0.1964,2950.9,2950.5,13.41576815]
[1764139983628,0.6818,2950.9,2950.5,13.41576815]
[1764139983829,0.6818,2950.9,2950.5,10.16776815]
[1764139984226,0.1355,2951.0,2950.5,10.16776815]
[1764139984463,0.6818,2951.3,2950.6,0.4627]
[1764139984955,0.1964,2951.3,2950.6,0.4627]
[1764139985151,0.4854,2951.2,2950.6,0.4627]
[1764139985459,0.4854,2951.2,2950.7,6.77805266]
[1764139985754,0.4874,2951.4,2950.8,0.4627]
[1764139987456,0.4874,2951.4,2950.9,10.16638989]
[1764139988354,0.002,2951.4,2950.9,10.16638989]
[1764139988558,0.002,2951.4,2951.0,0.4627]
[1764139988855,0.002,2951.4,2951.3,0.4952]
[1764139989255,0.002,2951.4,2951.3,0.9579]
[1764139989459,0.002,2951.4,2951.3,3.88353734]
[1764139989799,0.002,2951.4,2951.3,4.56123734]
[1764139990062,0.002,2951.4,2951.3,4.09853734]
[1764139990359,0.002,2951.4,2951.3,3.88353734]
[1764139990360,0.2985,2951.4,2951.3,3.88353734]
[1764139990931,0.2985,2951.4,2951.3,3.38833734]
[1764139991257,0.002,2951.4,2951.3,4.36893734]
[1764139991964,0.2985,2951.4,2951.3,3.87373734]
[1764139993971,0.002,2951.4,2951.3,3.85103734]
[1764139994573,0.002,2951.4,2951.3,6.48471843]
[1764139994772,0.002,2951.4,2951.3,6.95881843]
[1764139996566,0.002,2951.4,2951.3,4.32513734]
[1764139996874,0.4951,2951.4,2951.3,3.38833734]
[1764139997447,0.002,2951.4,2951.3,3.85103734]
[1764139998067,0.002,2951.4,2951.3,4.32513734]
[1764139998478,0.002,2951.4,2951.3,8.05764716]
[1764139998654,0.002,2951.4,2951.3,8.02376379]
[1764139999859,0.002,2951.4,2951.3,8.71916379]
[1764140000755,0.002,2951.4,2951.3,8.02376379]
[1764140000955,0.002,2951.4,2951.3,8.71916379]
[1764140001156,0.002,2951.4,2951.3,8.02376379]
[1764140001979,0.002,2951.4,2951.3,5.45623545]
[1764140002185,0.002,2951.4,2951.3,5.67123545]
[1764140003480,0.002,2951.4,2951.3,5.70511882]
[1764140003889,0.499,2952.3,2951.8,3.246]
[1764140004087,0.499,2952.3,2951.9,3.246]
[1764140004292,0.499,2952.3,2952.0,6.77506774]
[1764140004503,0.3152,2952.1,2952.0,3.38753387]
[1764140004984,0.50524109,2950.9,2949.2,0.1311]
[1764140005151,0.50524109,2950.9,2949.5,3.04162834]
[1764140005152,2.35029658,2950.9,2949.5,3.04162834]
[1764140005351,0.5101,2950.9,2950.8,3.38991148]
[1764140005957,0.3299,2950.9,2950.8,3.38991148]
[1764140006369,0.3299,2950.9,2950.8,0.001]
[1764140007058,0.499,2951.6,2950.8,0.9378]
[1764140007679,0.499,2951.6,2950.9,0.215]
[1764140008257,0.499,2951.6,2950.8,0.4751]
[1764140008258,0.499,2951.6,2950.8,0.001]
[1764140009595,0.499,2951.6,2950.8,0.4751]
[1764140009802,0.499,2951.6,2950.8,0.50898911]
[1764140010184,0.501,2951.6,2950.8,0.50898911]
[1764140010387,0.002,2951.6,2951.5,0.6437]
[1764140010587,0.002,2951.6,2951.5,5.99576826]
[1764140010981,0.002,2951.6,2951.5,6.17596826]
[1764140012518,0.002,2951.6,2951.5,9.564076]
[1764140013198,0.002,2951.6,2951.5,5.81720585]
[1764140013397,0.002,2951.6,2951.5,5.85300585]
[1764140013770,0.002,2951.6,2951.5,4.03180774]
[1764140013975,0.002,2951.6,2951.5,4.24780774]
[1764140014204,0.002,2951.6,2951.5,4.06680774]
[1764140014699,0.002,2951.6,2951.5,5.67200585]
[1764140015702,0.002,2951.6,2951.5,5.19790585]
[1764140015889,0.3301,2951.6,2951.5,4.32970185]
[1764140016069,0.002,2951.6,2951.5,4.79240185]
[1764140016273,0.002,2951.6,2951.5,4.32970185]
[1764140017005,0.002,2951.6,2951.5,3.60410774]
[1764140018003,0.829,2951.6,2951.5,3.38810774]
[1764140018515,0.002,2951.6,2951.5,3.38810774]
[1764140018817,0.3301,2951.6,2951.5,3.38810774]
[1764140019002,0.8274,2951.6,2951.3,3.38822821]
[1764140019202,0.002,2951.6,2951.3,3.38822821]
[1764140019902,0.3281,2951.4,2951.2,6.77689747]
[1764140020110,0.4993,2951.6,2951.2,10.38134962]
[1764140021786,0.4993,2951.6,2951.4,3.38822253]
[1764140021987,0.002,2951.6,2951.4,3.38822253]
[1764140022707,0.002,2951.6,2951.4,6.77644506]
[1764140022927,0.3281,2951.5,2951.4,3.38822253]
[1764140023490,0.002,2951.6,2951.4,7.23914506]
[1764140023692,0.002,2951.6,2951.5,0.4627]
[1764140024292,0.002,2951.6,2951.4,6.77644506]
[1764140025184,0.3281,2951.5,2951.4,3.38822253]
[1764140025531,0.8192,2951.5,2951.4,3.38822253]
[1764140026084,0.3281,2951.5,2951.4,3.38822253]
[1764140026296,0.002,2951.6,2951.4,7.26434506]
[1764140027353,0.002,2951.6,2951.5,0.4879]
[1764140027793,0.002,2951.6,2951.4,6.77644506]
[1764140028812,0.002,2951.6,2951.5,0.001]
[1764140029516,0.3395,2951.6,2951.5,0.001]
[1764140030218,0.8275,2951.6,2951.5,0.001]
[1764140030605,0.8275,2951.6,2951.5,3.811]
[1764140030917,0.002,2951.6,2951.5,3.811]
[1764140031521,0.002,2951.6,2951.5,7.19910774]
[1764140032188,0.002,2951.6,2951.5,7.68700774]
[1764140032588,0.002,2951.6,2951.5,7.19910774]
[1764140032831,0.8275,2951.6,2951.5,7.19910774]
[1764140033034,0.002,2951.6,2951.5,7.68700774]
[1764140033612,0.002,2951.6,2951.5,8.38500774]
[1764140033959,0.002,2951.6,2951.5,7.90300774]
[1764140034126,0.002,2951.6,2951.5,9.11060185]
[1764140034657,0.002,2951.6,2951.5,7.90300774]
[1764140034901,0.002,2951.6,2951.5,7.41510774]
[1764140035929,0.002,2951.6,2951.5,7.90300774]
[1764140036534,0.1872,2951.9,2951.6,3.808]
[1764140037316,0.4911,2952.1,2951.6,3.808]
[1764140037718,0.4911,2952.1,2951.7,10.16363451]
[1764140038718,0.329,2951.8,2951.7,3.38787817]
[1764140039618,0.4911,2952.1,2951.7,10.16363451]
[1764140041151,0.1872,2952.2,2951.7,6.77575634]
[1764140041337,0.1872,2952.2,2951.8,3.808]
[1764140041524,0.6783,2952.2,2951.8,3.808]
[1764140042349,0.1872,2952.2,2951.9,6.77529726]
[1764140042561,0.6607,2952.2,2951.9,6.77529726]
[1764140042774,0.4735,2952.7,2951.9,10.64384589]
[1764140043076,0.4735,2952.6,2951.9,10.64384589]
[1764140043374,0.6885,2952.8,2952.0,4.32277533]
[1764140043576,0.4735,2952.7,2952.1,3.808]
[1764140044042,0.4735,2952.7,2952.2,3.808]
[1764140044454,0.3456,2952.3,2952.2,7.19530438]
[1764140044834,0.8178,2952.3,2952.2,7.19530438]
[1764140045176,0.8178,2952.3,2952.2,3.38730438]
[1764140046334,0.8178,2952.3,2951.5,10.16532322]
[1764140046534,0.4735,2952.2,2951.5,10.16532322]
[1764140048264,0.3456,2951.6,2951.5,3.38910774]
[1764140048568,0.4735,2952.2,2951.5,0.001]
[1764140048866,0.4735,2952.2,2951.5,0.4796]
[1764140049434,0.3456,2951.6,2951.5,0.001]
[1764140049660,0.5336,2951.6,2951.5,0.001]
[1764140049861,0.188,2951.9,2951.5,0.4796]
[1764140050090,0.6615,2951.9,2951.5,0.4796]
[1764140050290,0.3456,2951.6,2951.5,0.001]
[1764140050676,0.4735,2952.2,2951.5,0.9605]
[1764140052610,0.4735,2952.2,2951.6,6.7759859]
[1764140052811,0.188,2952.1,2951.6,6.7759859]
[1764140053190,0.6615,2952.1,2951.6,6.7759859]
[1764140053504,0.002,2952.3,2951.6,10.16397885]
[1764140053744,0.3456,2951.7,2951.6,3.38799295]
[1764140054495,0.8162,2951.7,2951.5,0.001]
[1764140054817,0.3469,2951.6,2951.5,0.001]
[1764140055112,0.8163,2951.6,2951.5,0.001]
[1764140055913,0.3469,2951.6,2951.5,0.001]
[1764140056474,0.8163,2951.6,2951.5,0.001]
[1764140057317,0.3469,2951.6,2951.5,0.001]
[1764140058942,0.8163,2951.6,2951.5,0.001]
[1764140066253,0.6758,2951.9,2951.5,0.4645]
[1764140066576,0.1896,2951.9,2951.5,0.4645]
[1764140066780,0.4882,2952.3,2951.5,0.9483]
[1764140067096,0.4882,2952.3,2951.6,3.808]
[1764140067097,0.7032,2952.3,2951.6,3.808]
[1764140067298,0.002,2951.9,2951.7,6.77575634]
[1764140067793,0.002,2951.9,2951.8,3.808]
[1764140068148,0.3317,2951.9,2951.8,3.808]
[1764140068399,0.8163,2951.9,2951.8,3.808]
[1764140068598,1.0077,2951.9,2951.8,3.808]
[1764140069508,0.5231,2951.9,2951.8,7.19576339]
[1764140070411,1.0077,2951.9,2951.8,7.19576339]
[1764140071405,0.5231,2951.9,2951.8,7.19576339]
[1764140071910,1.0077,2951.9,2951.8,7.19576339]
[1764140075717,1.0077,2951.9,2951.8,3.808]
[1764140077589,0.5231,2951.9,2951.8,3.808]
[1764140077808,0.5467,2951.9,2951.8,7.19576339]
[1764140079620,1.0313,2951.9,2951.8,7.19576339]
[1764140083713,0.5467,2951.9,2951.8,7.19576339]
[1764140084829,1.0313,2951.9,2951.8,3.808]
[1764140085029,1.0313,2951.9,2951.8,7.19576339]
[1764140085635,0.5467,2951.9,2951.8,7.19576339]
[1764140086904,0.217,2951.9,2951.8,7.69066339]
[1764140088133,0.5483,2951.9,2951.8,7.19576339]
[1764140088525,0.3333,2951.9,2951.8,7.19576339]
[1764140089250,0.002,2951.9,2951.8,7.19576339]
[1764140090203,0.002,2951.9,2951.8,7.69066339]
[1764140090613,0.3326,2951.9,2951.8,7.19576339]
[1764140094038,0.002,2951.9,2951.8,7.69066339]
[1764140094203,0.002,2951.9,2951.8,7.19576339]
[1764140094605,0.002,2951.9,2951.8,7.69066339]
[1764140095304,0.002,2951.9,2951.8,8.14686339]
[1764140096410,0.341,2951.9,2951.8,7.19576339]
[1764140096612,1.0077,2951.9,2951.8,3.808]
[1764140097047,1.0077,2951.9,2951.8,7.19576339]
[1764140097220,0.341,2951.9,2951.8,7.19576339]
[1764140098138,0.8248,2951.9,2951.8,7.19576339]
[1764140098325,0.8248,2951.9,2951.8,3.808]
[1764140098515,0.8248,2951.9,2951.8,7.19576339]
[1764140098711,0.8248,2951.9,2951.8,3.808]
[1764140098923,0.65774993,2951.9,2951.8,3.808]
[1764140099123,0.87274993,2951.9,2951.8,3.808]
[1764140099323,1.35654993,2951.9,2951.8,3.808]
[1764140101863,1.35654993,2951.9,2951.7,3.808]
[1764140102034,0.31674993,2951.8,2951.7,7.19583436]
[1764140102359,0.217,2951.9,2951.8,0.4949]
[1764140102588,0.217,2951.9,2951.8,0.9486]
[1764140103380,0.217,2951.9,2951.8,4.33636339]
[1764140103665,0.217,2951.9,2951.8,8.14436339]
[1764140104740,0.002,2951.9,2951.8,8.14436339]
[1764140105065,0.3533,2951.9,2951.8,7.19576339]
[1764140105442,1.0079,2951.9,2951.8,7.19576339]
[1764140106375,1.0079,2951.9,2951.8,3.808]
[1764140107341,1.73349411,2951.9,2951.6,3.808]
[1764140107539,0.53176645,2951.8,2951.6,3.808]
[1764140107862,0.215,2951.8,2951.6,7.19599295]
[1764140108050,0.3513,2951.7,2951.6,7.19599295]
[1764140108444,0.8131,2951.7,2951.5,3.38906812]
[1764140108749,0.3524,2951.6,2951.5,3.38906812]
[1764140108959,0.8131,2951.6,2951.5,0.001]
[1764140109170,0.8131,2951.6,2951.5,3.38910774]
[1764140109566,0.8131,2951.6,2951.5,0.001]
[1764140109863,0.215,2951.8,2951.5,0.4574]
[1764140110264,0.6779,2951.8,2951.5,0.4574]
[1764140110482,0.215,2951.8,2951.5,0.001]
[1764140110843,0.4571,2951.6,2951.5,0.001]
[1764140111367,0.215,2951.8,2951.5,0.4574]
[1764140111772,0.215,2951.8,2951.6,3.38799295]
[1764140112278,0.3513,2951.7,2951.5,3.38906932]
[1764140114099,0.3513,2951.7,2951.5,0.001]
[1764140114589,0.215,2951.8,2951.5,0.001]
[1764140116497,0.215,2951.8,2951.5,0.4853]
[1764140116695,0.217,2951.9,2951.7,0.4612]
[1764140116905,0.217,2951.9,2951.8,0.4612]
[1764140117066,0.217,2951.9,2951.6,0.4843]
[1764140117266,0.217,2951.9,2951.5,0.001]
[1764140117463,0.217,2951.9,2951.5,0.4853]
[1764140117773,0.217,2951.9,2951.5,0.001]
[1764140118284,0.6932,2951.9,2951.5,0.001]